fUSD/lending_fUSD_20241001
["ID","MTS","AMOUNT","RATE_DAILY","PERIOD"]
[339651270,1727807443235,-309.865,0.00011,2]
[339651271,1727807443246,-669.52042211,0.00011,2]
[339651272,1727807443257,-392.857998,0.00011,2]
[339651273,1727807443268,-471.52007595,0.00011,2]
[339651274,1727807443279,-4847.04015918,0.00011,2]
[339651275,1727807443297,-370.61820372,0.00011,2]
[339651276,1727807443308,-10386.38,0.00011,2]
[339651277,1727807443320,-5203.47580105,0.00011,2]
[339651278,1727807443331,-647.46735558,0.00011,2]
[339651279,1727807443341,-734.54944902,0.00011,2]
[339651283,1727807443393,-418335.89247057,0.00011,2]
[339651284,1727807443404,-16137.75918031,0.00011,2]
[339651289,1727807443480,-641.85958326,0.00011,2]
[339651292,1727807443500,-1045.14,0.00011,2]
[339651294,1727807443511,-17645.626209,0.00011,2]
[339651296,1727807443524,-14470.00561792,0.00011,2]
[339651298,1727807443534,-2116.96306197,0.00011,2]
[339651300,1727807443545,-16774.24069954,0.00011,2]
[339651302,1727807443556,-659.44059965,0.00011,2]
[339651305,1727807443585,-75021.74171723,0.00011,2]
[339651307,1727807443597,-827.37773051,0.00011,2]
[339651309,1727807443607,-2057.28,0.00011,2]
[339651314,1727807445774,-245.69541615,0.00010911,2]
[339651315,1727807445784,-591.46616775,0.00011,2]
[339651316,1727807445795,-2189.5392959,0.00011,2]
[339651317,1727807445824,-1408.82174182,0.00011,2]
[339651319,1727807445835,-1973.77783105,0.00011,2]
[339651321,1727807445847,-4203.54536531,0.00011,2]
[339651322,1727807445858,-305.0,0.00011,2]
[339651323,1727807445868,-4506.06258621,0.00011,2]
[339651324,1727807445879,-4427.48361733,0.00011,2]
[339651325,1727807445891,-8623.99628399,0.00011,2]
[339651326,1727807445915,-27251.56505007,0.00011,2]
[339651327,1727807445928,-4069.54820653,0.00011,2]
[339651328,1727807445939,-690.60504577,0.00011,2]
[339651329,1727807445951,-926.66902096,0.00011,2]
[339651330,1727807445963,-432.87434618,0.00011,2]
[339651331,1727807446033,-447.85068755,0.00011,2]
[339651332,1727807446045,-2635.15652636,0.00011,2]
[339651333,1727807446056,-1195.57080635,0.00011,2]
[339651334,1727807446067,-5000.0,0.00011,2]
[339651335,1727807446111,-50106.93216621,0.00011,2]
[339651336,1727807446123,-1261.11299014,0.00011,2]
[339651337,1727807446134,-1138.28203649,0.00011,2]
[339651338,1727807446148,-6646.89595268,0.00011,2]
[339651339,1727807446160,-3827.9912898,0.00011,2]
[339651340,1727807446171,-1141.6,0.00011,2]
[339651341,1727807446182,-1710.75555846,0.00011,2]
[339651343,1727807446204,-33151.82099365,0.00011,2]
[339651345,1727807446215,-270.462826,0.00011,2]
[339651347,1727807446226,-1748.9835148,0.00011,2]
[339651348,1727807446237,-3380.00758411,0.00011,2]
[339651349,1727807446249,-1221.72,0.00011,2]
[339651350,1727807446260,-456.80005735,0.00011,2]
[339651351,1727807446271,-606.13570382,0.00011,2]
[339651352,1727807446282,-1073.61091901,0.00011,2]
[339651353,1727807446294,-291898.95939508,0.00011,2]
[339651354,1727807446305,-60328.5851955,0.00011,2]
[339651355,1727807446320,-2144.87803619,0.00011,2]
[339651356,1727807446331,-2192.36880359,0.00011,2]
[339651357,1727807574323,-372.8196,0.00010068,2]
[339651358,1727807574345,-200.0,0.00010115,2]
[339651359,1727807574369,-174.89,0.00010162,2]
[339651360,1727807574392,-182.5995416,0.0001038,2]
[339651361,1727807574415,-186.8109,0.0001048,2]
[339651362,1727807574437,-1000.0,0.0001048,2]
[339651363,1727807574458,-4017.4951,0.0001048,2]
[339651364,1727807574481,-1463.0877,0.0001048,2]
[339651365,1727807574504,-1966.3441,0.0001048,2]
[339651366,1727807574526,-214.5121,0.0001048,2]
[339651367,1727807574548,-714.57829354,0.0001068,2]
[339651368,1727807574573,-1015.2583,0.0001078,2]
[339651369,1727807574597,-714.57829353,0.0001079,2]
[339651370,1727807574620,-150.23271,0.0001089,2]
[339651371,1727807574644,-739.986973,0.000109,2]
[339651372,1727807574667,-207.61965061,0.00010903,2]
[339651373,1727807574690,-300.0,0.00010958,2]
[339651374,1727807574713,-906.35,0.00010959,2]
[339651375,1727807574736,-240.26,0.00010959,2]
[339651376,1727807574759,-200.22,0.00010959,2]
[339651377,1727807574782,-166.85,0.00010959,2]
[339651378,1727807574805,-500.0,0.00010973,2]
[339651379,1727807574827,-501.97786434,0.00010973,2]
[339651380,1727807574849,-500.0,0.00010973,2]
[339651381,1727807574871,-754.03,0.00010986,2]
[339651382,1727807574893,-1707.4111682,0.00010995,2]
[339651383,1727807574915,-49368.08770518,0.00010995,2]
[339651384,1727807578577,-34462.64481282,0.00010995,2]
[339651385,1727807578599,-1000.0,0.00010999,2]
[339651386,1727807578622,-150.01,0.00010999,2]
[339651387,1727807578644,-500.0,0.00010999,2]
[339651388,1727807578667,-500.0,0.00010999,2]
[339651389,1727807578691,-169.0686501,0.00010999,2]
[339651390,1727807578714,-500.0,0.00010999,2]
[339651391,1727807578737,-500.0,0.00010999,2]
[339651392,1727807578760,-500.0,0.00010999,2]
[339651393,1727807578782,-232.61508981,0.00010999,2]
[339651394,1727807578804,-500.0,0.00010999,2]
[339651395,1727807578826,-606.81084702,0.00010999,2]
[339651396,1727807578847,-300.0,0.00010999,2]
[339651397,1727807578868,-500.0,0.00010999,2]
[339651398,1727807578890,-500.68734814,0.00010999,2]
[339651399,1727807578911,-510.24067263,0.00010999,2]
[339651400,1727807578932,-500.0,0.00010999,2]
[339651401,1727807578953,-617.0,0.00011,2]
[339651402,1727807578979,-7450.92257948,0.00011,2]
[339651403,1727807579074,-50000.0,0.00011,2]
[339651404,1727807679686,476.77,8.311e-05,2]
[339651405,1727807777000,234.57,9.955e-05,2]
[339651406,1727807816371,384.45,9.955e-05,2]
[339651407,1727807874901,250.0,9.977e-05,2]
[339651408,1727807883947,248.226519,9.991e-05,2]
[339651409,1727807961080,9390.242181,9.99e-05,2]
[339651410,1727807961104,4201.35209977,9.99e-05,2]
[339651411,1727808041581,150.0,0.0001002,2]
[339651412,1727808044012,172.3,9.949e-05,2]
[339651413,1727808084464,191.55,9.589e-05,2]
[339651414,1727808137189,3311.0122,9.942e-05,2]
[339651415,1727808219298,200.0,9.912e-05,2]
[339651416,1727808232396,250.0,9.979e-05,2]
[339651417,1727808267586,467.68,8.219e-05,2]
[339651418,1727808312681,150.0,9.888e-05,2]
[339651419,1727808313170,150.0,9.956e-05,2]
[339651420,1727808315917,23900.0,9.859e-05,2]
[339651421,1727808321126,150.0,9.888e-05,2]
[339651422,1727808324581,850.69,9.658e-05,2]
[339651423,1727808330562,150.0,9.888e-05,2]
[339651424,1727808330859,150.0,9.949e-05,2]
[339651425,1727808331456,150.0,0.0001001,2]
[339651426,1727808341151,1000.0,9.608e-05,2]
[339651427,1727808343652,150.0,9.888e-05,2]
[339651428,1727808348063,150.44979896,9.888e-05,2]
[339651429,1727808349310,266.55057305,9.888e-05,2]
[339651430,1727808351095,150.96193548,9.888e-05,2]
[339651431,1727808352950,150.0,9.888e-05,2]
[339651432,1727808359098,150.0,9.888e-05,2]
[339651433,1727808364860,421.99,9.619e-05,2]
[339651434,1727808369215,500.0,9.634e-05,2]
[339651435,1727808406952,667.47,9.668e-05,2]
[339651436,1727808498587,463.27,9.692e-05,2]
[339651437,1727808530374,250.0,9.692e-05,2]
[339651438,1727808545158,190.35,9.692e-05,2]
[339651442,1727808622547,173.68,9.699e-05,2]
[339651443,1727808623988,156.39,9.699e-05,2]
[339651453,1727808631964,-150.0,0.00010025,2]
[339651454,1727808631974,-150.0,0.00010025,2]
[339651455,1727808631985,-82.31751455,0.00010071,2]
[339651456,1727808631997,-67.68248545,0.00010071,2]
[339651457,1727808632007,-2719.67546212,0.00010091,2]
[339651458,1727808632019,-2000.0,0.00010091,2]
[339651459,1727808632056,-7368.09931472,0.00010091,2]
[339651460,1727808632069,-150.0,0.00010094,2]
[339651461,1727808632079,-150.0,0.00010132,2]
[339651462,1727808632089,-150.0,0.00010162,2]
[339651463,1727808632099,-150.0,0.00010162,2]
[339651464,1727808632108,-150.0,0.00010193,2]
[339651465,1727808632118,-150.0,0.00010231,2]
[339651466,1727808632127,-150.0,0.00010254,2]
[339651467,1727808632136,-299.99,0.00010254,2]
[339651468,1727808632146,-150.0,0.000103,2]
[339651469,1727808632156,-150.0,0.000103,2]
[339651470,1727808632166,-150.0,0.00010315,2]
[339651471,1727808632175,-150.0,0.00010368,2]
[339651472,1727808632185,-150.0,0.00010376,2]
[339651473,1727808632195,-150.0,0.00010437,2]
[339651474,1727808632205,-150.0,0.00010437,2]
[339651475,1727808632215,-150.0,0.00010437,2]
[339651476,1727808632224,-150.0,0.00010437,2]
[339651477,1727808632234,-150.0,0.00010437,2]
[339651478,1727808632244,-150.0,0.00010437,2]
[339651479,1727808632254,-150.0,0.00010438,2]
[339651480,1727808632264,-467.68,0.00010468,2]
[339651481,1727808632274,-5584.60852512,0.00010474,2]
[339651482,1727808632286,-389.84087267,0.00010474,2]
[339651483,1727808632298,-12443.2512716,0.00010474,2]
[339651484,1727808632310,-4207.88817068,0.00010474,2]
[339651485,1727808632326,-946.91190695,0.00010474,2]
[339651486,1727808632347,-7786.32925298,0.00010474,2]
[339651487,1727808632358,-150.0,0.00010479,2]
[339651488,1727808632369,-9930.87656346,0.0001048,2]
[339651491,1727808632824,-0.69844765,0.0001048,2]
[339651492,1727808632836,-1601.38575,0.0001048,2]
[339651493,1727808632862,-401.44091038,0.0001048,2]
[339651494,1727808632874,-290.16336359,0.0001048,2]
[339651495,1727808632890,-1336.34521765,0.0001048,2]
[339651496,1727808632902,-460.19652237,0.0001048,2]
[339651497,1727808632914,-58808.8191249,0.0001048,2]
[339651498,1727808632924,-150.0,0.00010498,2]
[339651499,1727808632934,-150.0,0.00010506,2]
[339651500,1727808632944,-150.0,0.00010559,2]
[339651501,1727808632953,-150.0,0.00010574,2]
[339651502,1727808632963,-150.0,0.00010574,2]
[339651503,1727808632977,-499.99,0.00010575,2]
[339651504,1727808632987,-530.13,0.00010575,2]
[339651505,1727808632997,-11513.0,0.000106,3]
[339651506,1727808633007,-150.0,0.0001062,2]
[339651507,1727808633017,-150.0,0.00010643,2]
[339651508,1727808633027,-150.0,0.00010681,2]
[339651509,1727808633037,-1500.0,0.00010698,2]
[339651510,1727808633047,-1500.0,0.00010701,2]
[339651511,1727808633058,-1500.0,0.00010705,2]
[339651512,1727808633078,-150.0,0.00010712,2]
[339651513,1727808633089,-150.0,0.00010712,2]
[339651514,1727808633099,-150.0,0.00010721,2]
[339651515,1727808633109,-1500.0,0.00010736,2]
[339651516,1727808633119,-150.0,0.00010738,2]
[339651517,1727808633130,-150.0,0.00010742,2]
[339651518,1727808633141,-1500.0,0.00010746,2]
[339651519,1727808633151,-150.0,0.00010755,2]
[339651520,1727808633162,-150.0,0.00010755,2]
[339651521,1727808633172,-1500.0,0.00010755,2]
[339651522,1727808633182,-150.0,0.00010759,2]
[339651523,1727808633193,-150.0,0.00010765,2]
[339651524,1727808633203,-150.0,0.00010766,2]
[339651525,1727808633527,-150.0,0.00010772,2]
[339651526,1727808633546,-150.0,0.00010773,2]
[339651527,1727808633556,-150.0,0.00010774,2]
[339651528,1727808633569,-1500.0,0.00010776,2]
[339651529,1727808633579,-1579.60902175,0.00010776,2]
[339651530,1727808633588,-150.0,0.0001078,2]
[339651531,1727808633598,-1500.0,0.00010785,2]
[339651532,1727808633607,-150.0,0.0001079,2]
[339651533,1727808633617,-150.0,0.00010792,2]
[339651534,1727808633627,-20805.4463,0.000108,2]
[339651535,1727808633636,-1073.97692747,0.000108,2]
[339651536,1727808633646,-1000.0,0.000108,2]
[339651537,1727808633655,-1500.0,0.00010803,2]
[339651538,1727808633665,-150.0,0.00010803,2]
[339651539,1727808633675,-150.0,0.00010806,2]
[339651540,1727808633684,-1000.0,0.00010809,2]
[339651541,1727808633694,-1500.0,0.00010809,2]
[339651542,1727808633704,-421.99,0.00010822,2]
[339651543,1727808633714,-1500.0,0.00010828,2]
[339651544,1727808633724,-150.0,0.00010834,2]
[339651545,1727808633734,-1500.0,0.00010834,2]
[339651546,1727808633743,-150.0,0.00010838,2]
[339651547,1727808633753,-150.0,0.00010849,2]
[339651548,1727808633763,-150.0,0.00010849,2]
[339651549,1727808633773,-150.12,0.00010852,2]
[339651550,1727808633783,-150.0,0.00010863,2]
[339651551,1727808633794,-150.0,0.00010863,2]
[339651552,1727808633808,-150.0,0.00010863,2]
[339651553,1727808633821,-150.0,0.00010864,2]
[339651554,1727808633832,-150.0,0.00010875,2]
[339651555,1727808633843,-1500.0,0.00010893,2]
[339651556,1727808633853,-23083.9972,0.000109,2]
[339651557,1727808633863,-194522.75760471,0.000109,2]
[339651561,1727808637893,-1520.44675653,0.000109,2]
[339651563,1727808637905,-3962.55749776,0.000109,2]
[339651566,1727808637916,-3110.01716113,0.000109,2]
[339651568,1727808637927,-799.5914014,0.000109,2]
[339651569,1727808637977,-1002.08790778,0.000109,2]
[339651570,1727808637989,-24568.45327069,0.000109,2]
[339651571,1727808637999,-168.77019696,0.000109,2]
[339651572,1727808638008,-387.5205343,0.000109,2]
[339651573,1727808638019,-207.61965061,0.000109,2]
[339651574,1727808638035,-150.0,0.00010902,2]
[339651575,1727808638045,-150.0,0.00010903,2]
[339651576,1727808638054,-217.87569858,0.00010909,2]
[339651577,1727808638066,-150.0,0.0001091,2]
[339651578,1727808638077,-150.0,0.00010916,2]
[339651579,1727808638086,-1500.0,0.00010917,2]
[339651580,1727808638095,-150.0,0.00010918,2]
[339651581,1727808638104,-150.0,0.00010921,2]
[339651582,1727808638114,-150.0,0.00010925,2]
[339651583,1727808638123,-150.0,0.00010928,2]
[339651584,1727808638131,-862.61060657,0.00010931,2]
[339651585,1727808638140,-1500.0,0.00010931,2]
[339651586,1727808638150,-150.0,0.00010932,2]
[339651587,1727808638159,-153.63575951,0.00010936,2]
[339651588,1727808638168,-150.0,0.00010953,2]
[339651589,1727808638177,-200.0,0.00010959,2]
[339651590,1727808638186,-155.05,0.00010959,2]
[339651591,1727808638196,-250.0,0.00010959,2]
[339651592,1727808638205,-160.68,0.00010959,2]
[339651593,1727808638213,-834.27,0.00010959,2]
[339651594,1727808638223,-150.0,0.00010971,2]
[339651595,1727808638232,-150.0,0.00010971,2]
[339651596,1727808638241,-500.0,0.00010973,2]
[339651597,1727808638252,-150.0,0.00010986,2]
[339651599,1727808638261,-150.0,0.00010986,2]
[339651601,1727808638271,-150.0,0.00010986,2]
[339651603,1727808638280,-150.0,0.00010986,2]
[339651605,1727808638289,-150.0,0.00010986,2]
[339651607,1727808638298,-150.00000001,0.00010986,2]
[339651609,1727808638307,-159.39020911,0.0001099,2]
[339651610,1727808638318,-153.7,0.0001099,2]
[339651612,1727808638327,-153.7,0.0001099,2]
[339651614,1727808638336,-153.7,0.0001099,2]
[339651616,1727808638345,-1000.0,0.00010999,2]
[339651618,1727808638354,-1000.0,0.00010999,3]
[339651620,1727808638363,-1000.0,0.00010999,4]
[339651622,1727808638372,-895.40919049,0.00010999,2]
[339651624,1727808638381,-500.0,0.00010999,2]
[339651626,1727808638391,-714.0,0.00011,2]
[339651628,1727808638401,-40167.88506463,0.00011,2]
[339651630,1727808638412,-5158373.78143773,0.00011,2]
[339651633,1727808638424,-63491.59336379,0.00011,2]
[339651635,1727808638437,-395.84138024,0.00011,2]
[339651639,1727808638489,-1938.5185886,0.00011,2]
[339651640,1727808638501,-5600.74336425,0.00011,2]
[339651641,1727808638512,-574.14973088,0.00011,2]
[339651642,1727808638523,-13200.0,0.00011,2]
[339651643,1727808638574,-2702.756445,0.00011,2]
[339651644,1727808638585,-305.04868848,0.00011,2]
[339651653,1727808640196,-3749.99670001,0.00011,2]
[339651654,1727808640208,-400.85359315,0.00011,2]
[339651655,1727808640219,-603.58068926,0.00011,2]
[339651656,1727808640231,-590.3446827,0.00011,2]
[339651657,1727808640242,-1082.80036005,0.00011,2]
[339651674,1727808642964,-1261.31414876,0.00011,2]
[339651679,1727808643157,-292.35005528,0.00011,2]
[339651680,1727808643229,-9001.87014775,0.00011,2]
[339651681,1727808643533,6055.8481,9.925e-05,2]
[339651683,1727808646020,-472.15550848,0.00011,2]
[339651684,1727808646032,-3559.9489424,0.00011,2]
[339651685,1727808646043,-6244.1,0.00011,2]
[339651686,1727808646205,-397.5970644,0.00011,2]
[339651687,1727808647695,-55686.596519,0.00011,2]
[339651688,1727808647706,-69551.6223623,0.00011,2]
[339651689,1727808647717,-250.0,0.00011,2]
[339651690,1727808647728,-13284.15176179,0.00011,2]
[339651691,1727808699217,191.55,9.589e-05,2]
[339651692,1727808795808,200.0,9.97e-05,2]
[339651693,1727808807783,250.0,9.96e-05,2]
[339651694,1727808815852,200.0,0.00021094,120]
[339651695,1727808845917,441.53,8.219e-05,2]
[339651696,1727808868716,867.35,9.916e-05,2]
[339651697,1727808891217,23900.0,9.922e-05,2]
[339651698,1727808965053,292.0,9.913e-05,2]
[339651699,1727808971194,1000.0,9.907e-05,2]
[339651700,1727808988885,401.09,9.986e-05,2]
[339651701,1727808997386,500.0,9.907e-05,2]
[339651702,1727809072581,332.8,9.907e-05,2]
[339651703,1727809149388,887.62,9.9e-05,2]
[339651704,1727809169713,156.39,9.907e-05,2]
[339651708,1727809337486,250.0,9.905e-05,2]
[339651709,1727809383302,250.0,9.908e-05,2]
[339651710,1727809406419,200.0,0.00020866,120]
[339651711,1727809406806,200.0,0.00021283,120]
[339651712,1727809407218,200.0,0.00021699,120]
[339651713,1727809434771,433.67,9.898e-05,2]
[339651714,1727809472965,440.53,8.219e-05,2]
[339651715,1727809527750,23900.0,9.892e-05,2]
[339651716,1727809561764,411.3,9.887e-05,2]
[339651717,1727809562511,450.11,9.892e-05,2]
[339651718,1727809573519,200.0,9.882e-05,2]
[339651727,1727809762502,1705.52,9.887e-05,2]
[339651728,1727809767343,173.25,9.887e-05,2]
[339651729,1727809783914,1850.43,9.894e-05,2]
[339651735,1727809832124,-394.272155,0.00010222,2]
[339651737,1727809832135,-349.2404,0.00010374,2]
[339651738,1727809832146,-440.53,0.0001047,2]
[339651739,1727809832156,-300.0,0.00010625,2]
[339651740,1727809832166,-150.0,0.00010626,2]
[339651741,1727809832176,-2729.26585709,0.00010626,2]
[339651742,1727809832189,-351.89855854,0.00010626,2]
[339651743,1727809832201,-562.21440665,0.00010626,2]
[339651744,1727809832212,-8486.04533077,0.00010626,2]
[339651745,1727809832225,-2498.3477175,0.00010626,2]
[339651746,1727809832237,-3372.54487743,0.00010626,2]
[339651747,1727809832252,-1855.65488508,0.00010626,2]
[339651748,1727809832263,-983.93,0.00010626,2]
[339651749,1727809832275,-664.57727663,0.00010626,2]
[339651750,1727809832305,-633.39617763,0.00010626,2]
[339651751,1727809832319,-400.0,0.00010626,2]
[339651752,1727809832331,-793.35,0.00010626,2]
[339651753,1727809832344,-1274.32993384,0.00010626,2]
[339651754,1727809832356,-10445.23256961,0.00010626,2]
[339651755,1727809832367,-5395.38119057,0.00010626,2]
[339651756,1727809832378,-2813.80747392,0.00010626,2]
[339651757,1727809832399,-4212.6311127,0.00010626,2]
[339651758,1727809832412,-2527.39263204,0.00010626,2]
[339651759,1727809832422,-1000.0,0.00010627,2]
[339651760,1727809832432,-3541.1112993,0.00010628,2]
[339651761,1727809832444,-549.80814221,0.00010628,2]
[339651762,1727809832455,-1255.12,0.00010628,2]
[339651763,1727809832467,-117.06925849,0.00010628,2]
[339651764,1727809832476,-220.28006045,0.00010628,2]
[339651765,1727809832488,-2984.3221489,0.00010628,2]
[339651766,1727809832499,-7323.924979,0.00010628,2]
[339651768,1727809832511,-737.5985368,0.00010628,2]
[339651772,1727809832545,-5221.07153573,0.00010628,2]
[339651774,1727809832557,-8946.45920343,0.00010628,2]
[339651776,1727809832569,-1285.70283055,0.00010628,2]
[339651777,1727809832581,-357.46371413,0.00010628,2]
[339651778,1727809832594,-628.42,0.00010628,2]
[339651779,1727809832606,-3952.11216265,0.00010628,2]
[339651780,1727809832618,-10402.4493057,0.00010628,2]
[339651781,1727809832629,-588.74678369,0.00010628,2]
[339651783,1727809832640,-1974.18309637,0.00010628,2]
[339651784,1727809832651,-2248.6741294,0.00010628,2]
[339651785,1727809832663,-750.26546194,0.00010628,2]
[339651786,1727809832675,-1266.60175907,0.00010628,2]
[339651787,1727809832688,-736.15229219,0.00010628,2]
[339651788,1727809832698,-1309.60536864,0.00010628,2]
[339651789,1727809832709,-3676.73513136,0.00010628,2]
[339651790,1727809832719,-4513.4936,0.00010685,2]
[339651791,1727809832728,-1758.8238,0.00010685,2]
[339651792,1727809832738,-12591.5645,0.00010685,2]
[339651793,1727809832748,-172.8445,0.00010685,2]
[339651794,1727809832757,-7226.98433775,0.00010706,2]
[339651795,1727809832767,-100000.0,0.00010728,2]
[339651796,1727809832777,-776.85,0.00010728,2]
[339651797,1727809832786,-247.53,0.00010728,2]
[339651798,1727809832796,-150.0,0.00010729,2]
[339651799,1727809832806,-446.14,0.00010729,2]
[339651800,1727809832816,-352.22,0.00010729,2]
[339651801,1727809832825,-323.54,0.00010729,2]
[339651802,1727809832836,-499.99,0.00010729,2]
[339651803,1727809832848,-2526.42,0.00010729,2]
[339651804,1727809832858,-3203.7251,0.00010734,2]
[339651805,1727809832868,-1000.0,0.00010734,2]
[339651806,1727809832877,-1500.0,0.00010788,2]
[339651807,1727809832886,-150.0,0.0001079,2]
[339651808,1727809832896,-441.68766587,0.00010793,2]
[339651809,1727809832905,-2981.3754,0.000108,2]
[339651810,1727809832914,-150.0,0.00010801,2]
[339651811,1727809832924,-1500.0,0.00010856,2]
[339651812,1727809832933,-150.0,0.00010883,2]
[339651813,1727809832943,-1500.0,0.00010888,2]
[339651814,1727809832953,-151.137,0.000109,2]
[339651815,1727809832962,-163.90333942,0.000109,2]
[339651816,1727809832971,-258.34702288,0.000109,2]
[339651817,1727809832981,-493.32464866,0.000109,2]
[339651818,1727809832990,-150.0,0.00010901,2]
[339651819,1727809833000,-150.0,0.00010908,2]
[339651820,1727809833009,-500.0,0.00010911,2]
[339651821,1727809833019,-500.0,0.00010912,2]
[339651822,1727809833028,-500.0,0.00010912,2]
[339651823,1727809833038,-150.0,0.0001094,2]
[339651824,1727809833048,-200.0,0.00010959,2]
[339651825,1727809833058,-162.59,0.00010959,2]
[339651826,1727809833067,-250.0,0.00010959,2]
[339651827,1727809833077,-804.93,0.00010959,2]
[339651828,1727809833086,-150.0,0.00010959,2]
[339651829,1727809833099,-2000.0,0.00010959,2]
[339651830,1727809833109,-3284.88,0.00010959,2]
[339651831,1727809833118,-388.92563463,0.00010973,2]
[339651832,1727809833128,-500.0,0.00010973,2]
[339651833,1727809833138,-500.0,0.00010973,2]
[339651834,1727809833148,-1500.0,0.00010975,2]
[339651835,1727809833157,-500.0,0.00010999,2]
[339651836,1727809833167,-500.0,0.00010999,2]
[339651837,1727809833176,-500.0,0.00010999,2]
[339651838,1727809833186,-500.0,0.00010999,2]
[339651839,1727809833196,-500.0,0.00010999,2]
[339651840,1727809833206,-500.0,0.00010999,2]
[339651841,1727809833216,-287.25198151,0.00010999,2]
[339651842,1727809833226,-558.0,0.00011,2]
[339651843,1727809833236,-250994.55822387,0.00011,2]
[339651851,1727809838438,-225.51966307,0.000109,2]
[339651852,1727809838448,-153.84,0.0001099,2]
[339651853,1727809838458,-73.28033693,0.0001099,2]
[339651854,1727809838470,-80.55966307,0.0001099,2]
[339651855,1727809838479,-153.84,0.0001099,2]
[339651856,1727809838489,-153.84,0.0001099,2]
[339651857,1727809838499,-153.84,0.0001099,2]
[339651858,1727809838508,-153.84,0.0001099,2]
[339651859,1727809838518,-153.84,0.0001099,2]
[339651860,1727809838527,-153.84,0.0001099,2]
[339651861,1727809838537,-153.84,0.0001099,2]
[339651862,1727809838546,-4583.33868385,0.00011,2]
[339651863,1727809838558,-880.12,0.00011,2]
[339651864,1727809838569,-3667.85236877,0.00011,2]
[339651866,1727809838580,-1002.80179028,0.00011,2]
[339651868,1727809838592,-888.51999758,0.00011,2]
[339651870,1727809838606,-189368.57913535,0.00011,2]
[339651873,1727809838626,-1921.952907,0.00011,2]
[339651875,1727809838638,-1893.1272692,0.00011,2]
[339651877,1727809838650,-659.75132017,0.00011,2]
[339651880,1727809838661,-1372.2,0.00011,2]
[339651884,1727809838673,-1629.28466549,0.00011,2]
[339651886,1727809838684,-3355.3979276,0.00011,2]
[339651888,1727809838696,-2758.23380241,0.00011,2]
[339651889,1727809838707,-7488.18136091,0.00011,2]
[339651893,1727809838730,-879.14563992,0.00011,2]
[339651895,1727809838742,-1514.63437236,0.00011,2]
[339651897,1727809838753,-1886.88,0.00011,2]
[339651899,1727809838764,-514.88286204,0.00011,2]
[339651901,1727809838776,-1524.64822492,0.00011,2]
[339651903,1727809838787,-1850.0,0.00011,2]
[339651905,1727809838799,-28766.3029231,0.00011,2]
[339651908,1727809838811,-6756.10214935,0.00011,2]
[339651910,1727809838822,-2397.52493888,0.00011,2]
[339651912,1727809838833,-612.18240239,0.00011,2]
[339651914,1727809838846,-308.42346545,0.00011,2]
[339651916,1727809838858,-313.27,0.00011,2]
[339651918,1727809838869,-1120.66502401,0.00011,2]
[339651920,1727809838882,-254.99999,0.00011,2]
[339651922,1727809838894,-386.41072083,0.00011,2]
[339651924,1727809838905,-103352.02889805,0.00011,2]
[339651929,1727809838945,-2757.58727979,0.00011,2]
[339651931,1727809838957,-941.43031319,0.00011,2]
[339651934,1727809838969,-1118.02288254,0.00011,2]
[339651936,1727809838980,-348.23005832,0.00011,2]
[339651938,1727809838991,-744.92622276,0.00011,2]
[339651940,1727809839003,-597.24,0.00011,2]
[339651942,1727809839015,-1524.03827589,0.00011,2]
[339651944,1727809839026,-471.39155754,0.00011,2]